Cogmind - Beta 16 @@@ ROGUE MODE // 2025.11.18 @ 21:46:01 Player: Reflectatory Result: Destroyed by B-86 Titan with Railgun Performance ------------- Evolutions (6) 3000 Regions Visited (14) 2800 Robots Destroyed (189) 945 Value Destroyed (8163) 8163 Prototype IDs (30) 600 Alien Tech Used (0) 0 Bonus (3035) 3035 TOTAL SCORE: 18543 Bonus ------- High Alert Combat Kills 375 Entered Garrisons 200 Entered DSFs 500 Acquired ECA 300 Met Warlord at Base 500 MAIN.C Attacked Warlord 500 Warlord Defense Kills 660 Cogmind --------- Core Integrity 0/1150 Matter 221/300 Energy 36/100 System Corruption 0% Temperature Cool (0) Movement Core (100) Ox1 Location -4/Garrison Parts ------- > --- POWER (2) -------- (None) > --- PROPULSION (4) --- (None) > --- UTILITY (11) ----- Improved Target Analyzer Core Analyzer Advanced Weapon Cycler Advanced Weapon Cycler Advanced Weapon Cycler Advanced Weapon Cycler > --- WEAPON (2) ------- (None) > --- INVENTORY (5) ---- Flexi-carbon Leg Flexi-carbon Leg Flexi-carbon Leg Peak State ------------ > --- POWER ------------ Reinforced Fission Core > --- PROPULSION ------- Flexi-carbon Leg Myomer Leg Myomer Leg Myomer Leg > --- UTILITY ---------- Advanced Heat Sink Advanced Heat Sink Advanced Heat Sink Encrypted Comm Array Improved Targeting Computer Advanced Melee Analysis Suite Improved Target Analyzer Core Analyzer Improved Phase Shifter > --- WEAPON ----------- Power Sword Power Sword > --- INVENTORY -------- Flexi-carbon Leg Flexi-carbon Leg Flexi-carbon Leg RU-N14's Throwing Claymores v3 [Rating: 87] Favorites ----------- Power Reinforced Fission Core Engine Heavy Ion Engine Power Core Reinforced Fission Core Reactor Light Antimatter Reactor Propulsion Carbon-fiber Leg Treads Medium Treads Leg Carbon-fiber Leg Wheel Wheel Hover Unit Aerolev Unit Flight Unit Improved Flight Unit Utility Improved Medium Armor Plating Device Microactuators Processor Advanced Melee Analysis Suite Protection Improved Medium Armor Plating Weapon Power Sword Energy Gun Small Laser Energy Cannon Advanced Beam Cannon Ballistic Gun Enhanced Autogun Launcher Advanced EMP Blaster Special Weapon RU-N14's Throwing Claymores v3 Impact Weapon Heavy Flail Slashing Weapon Power Sword Build | -11 -10 -10 -8 -8 -7 -6 -6 -5 -5 -5 -5 -4 -4 -4 ------- Run | Yrd Mat Sub Mat Sto Fac Fac DSF Fac Upp Upp War Pro Fac Gar Slots Evolved 12 | . . . 4 . 2 2 . 2 . . . . 2 . Power 1 | . . . 1 . . . . . . . . . . . Propulsion 2 | . . . . . 1 1 . . . . . . . . Utility 9 | . . . 3 . 1 1 . 2 . . . . 2 . Weapon . | . . . . . . . . . . . . . . . Parts Attached 190 | 5 6 2 33 19 33 2 18 24 5 8 11 2 2 20 Power 33 | 1 1 1 10 4 5 . 2 3 . 3 1 . . 2 Engine 10 | 1 . 1 4 3 . . 1 . . . . . . . Core 22 | . 1 . 6 1 5 . 1 2 . 3 1 . . 2 Reactor 1 | . . . . . . . . 1 . . . . . . Propulsion 55 | 2 2 . 9 3 9 1 5 10 2 1 4 . . 7 Treads 14 | . 2 . 3 . 1 . 3 . . . 4 . . 1 Leg 36 | . . . 6 . 8 1 2 10 2 1 . . . 6 Wheel 2 | 2 . . . . . . . . . . . . . . Hover 1 | . . . . 1 . . . . . . . . . . Flight 2 | . . . . 2 . . . . . . . . . . Utility 73 | . 2 1 7 5 14 1 9 11 3 3 4 2 2 9 Device 28 | . 1 . 2 1 2 1 1 7 1 1 2 . 1 8 Storage . | . . . . . . . . . . . . . . . Processor 11 | . . . 1 1 2 . 2 2 . . . 1 1 1 Hackware . | . . . . . . . . . . . . . . . Protection 34 | . 1 1 4 3 10 . 6 2 2 2 2 1 . . Artifact . | . . . . . . . . . . . . . . . Weapon 29 | 2 1 . 7 7 5 . 2 . . 1 2 . . 2 Energy Gun 11 | 1 1 . 3 4 2 . . . . . . . . . Energy Cannon 1 | . . . . 1 . . . . . . . . . . Ballistic Gun 4 | 1 . . 1 1 . . . . . . . . . 1 Ballistic Cannon . | . . . . . . . . . . . . . . . Launcher 1 | . . . . 1 . . . . . . . . . . Special Weapon 1 | . . . . . . . . . . . 1 . . . Impact Weapon 1 | . . . . . . . . . . 1 . . . . Slashing Weapon 10 | . . . 3 . 3 . 2 . . . 1 . . 1 Piercing Weapon . | . . . . . . . . . . . . . . . Special Melee Weapon . | . . . . . . . . . . . . . . . Unidentified Prototypes 20 | . . . 3 12 2 . . 1 . . 2 . . . Parts Lost 69 | . 1 3 5 . 6 . 11 5 1 1 2 5 . 29 Power 8 | . . 1 . . . . 2 . 1 . . . . 4 Propulsion 17 | . 1 1 3 . . . 2 1 . . . 1 . 8 Utility 37 | . . . 2 . 5 . 7 4 . 1 2 4 . 12 Weapon 7 | . . 1 . . 1 . . . . . . . . 5 Highest Loss Streak 16 | . 1 3 2 . 2 . 5 2 1 1 1 2 . 16 To Critical Strikes . | . . . . . . . . . . . . . . . Average Backups 4 | 1 2 4 4 4 4 3 4 4 5 4 5 3 2 2 Power . | . . 1 1 . . . . . . . . . . . Propulsion 1 | 1 2 2 . . 1 . . . 1 1 1 . . 1 Utility 1 | . . . 1 2 1 1 3 1 2 1 2 1 . . Weapon 1 | . . . . 1 1 1 1 2 2 2 2 2 2 1 Tool/Special . | . . . . . . . . . . . . . . . Unused Backups 13 | . 2 1 6 1 . . 2 . . . . . . 1 Power 2 | . . 1 1 . . . . . . . . . . . Propulsion 5 | . 2 . 2 . . . . . . . . . . 1 Utility 4 | . . . 2 1 . . 1 . . . . . . . Weapon 2 | . . . 1 . . . 1 . . . . . . . Tool/Special . | . . . . . . . . . . . . . . . Average Slot Usage (%) 90 | . 91 79 90 89 90 98 88 91 98 96 97 91 78 60 Engine 3 | . 6 9 1 8 6 . 1 2 . . . . . . Core 8 | . 7 4 15 9 8 13 5 2 5 7 11 11 10 5 Treads 8 | . 14 18 8 17 5 . 10 4 . . 1 22 15 5 Leg 11 | . . . 8 . 17 26 12 13 23 23 21 . . 5 Device 13 | . 8 6 6 4 6 4 6 20 29 29 28 15 13 13 Processor 8 | . . . 8 4 10 13 6 12 11 11 10 10 12 15 Protection 18 | . 11 21 24 27 21 26 28 16 11 11 9 16 15 4 Energy Gun 2 | . 26 18 2 . . . . . . . . . . . Slashing Weapon 10 | . . . 14 17 11 13 13 11 11 11 11 11 10 7 Peak Build Rating 87 | 5 9 9 39 41 50 57 65 82 76 80 85 85 78 87 Average Rating 50 | 4 7 8 30 38 46 55 56 70 74 76 80 79 73 59 On Entrance 47 | . 5 9 9 38 38 47 57 53 74 71 80 80 68 78 Avg Prop Armor Cover (%) 3 | . . . 12 . 4 . 1 6 . . 2 . . . Naked Turns . | . . . . . . . . . . . . . . . Heaviest Build 85 | 7 9 14 41 47 51 36 52 67 59 66 85 85 67 67 Greatest Support 112 | 20 40 40 62 56 78 72 72 70 65 75 112 112 82 95 Greatest Overweight (x) 10 | . . . 1 . 2 . 2 1 . . 3 . . 10 Average Overweight (x) . | . . . . . . . . . . . . . . . Largest Inventory Capacity 5 | 5 5 5 5 5 5 5 5 5 5 5 5 5 5 5 Average Capacity 5 | 5 5 5 5 5 5 5 5 5 5 5 5 5 5 5 Most Carried 5 | 2 4 5 5 5 5 4 5 5 5 5 5 5 2 4 Average Carried 4 | . 2 4 4 4 4 3 4 4 5 4 5 3 2 2 Final Capacity 5 | 5 5 5 5 5 5 5 5 5 5 5 5 5 5 5 Final Carried 5 | 2 3 5 5 5 2 4 4 5 5 5 5 2 2 3 Class Distribution -------------------- 34% | Scavenger-Gladiator 34% | Mutant 29% | Gladiator Dominant Class ---------------- Mutant | -10/Materials Mutant | -10/Subcaves Mutant | -8/Materials Mutant | -8/Storage Gladiator | -7/Factory Scavenger-Gladiator | -6/Factory Scavenger-Gladiator | -6/DSF Scavenger-Gladiator | -5/Factory Scavenger-Gladiator | -5/Upper Caves Scavenger-Gladiator | -5/Upper Caves Gladiator | -5/Warlord Scavenger-Gladiator | -4/Proximity Caves Scavenger-Gladiator | -4/Factory Scavenger-Gladiator | -4/Garrison Resources | -11 -10 -10 -8 -8 -7 -6 -6 -5 -5 -5 -5 -4 -4 -4 ----------- Run | Yrd Mat Sub Mat Sto Fac Fac DSF Fac Upp Upp War Pro Fac Gar Matter Collected 2798 | 221 58 56 402 337 535 . 195 319 72 140 244 92 . 127 Remotely . | . . . . . . . . . . . . . . . Salvage Created 9914 | . 131 145 1396 1354 2294 . 970 1925 216 337 236 393 . 517 Parts 432 | . 10 6 78 60 104 . 33 70 10 12 4 23 . 22 Haulers Intercepted 8 | . . . 3 3 1 . . 1 . . . . . . Recyclers Shooed 3 | . . . 1 . . . . 2 . . . . . . Parts Field Recycled . | . . . . . . . . . . . . . . . Retrieved Matter . | . . . . . . . . . . . . . . . Parts Self-Destructed 46 | . . 5 . . . . . . 9 10 . 22 . . Prevented . | . . . . . . . . . . . . . . . Parts Restored . | . . . . . . . . . . . . . . . Kills | -11 -10 -10 -8 -8 -7 -6 -6 -5 -5 -5 -5 -4 -4 -4 ------- Run | Yrd Mat Sub Mat Sto Fac Fac DSF Fac Upp Upp War Pro Fac Gar Combat Hostiles Destroyed 168 | . 5 3 26 23 43 . 11 22 3 5 4 11 . 12 Melee 154 | . . . 20 23 43 . 11 22 3 5 4 11 . 12 Guns 14 | . 5 3 6 . . . . . . . . . . . Classes Destroyed 18 | . 2 1 7 1 2 . 2 1 . . 1 1 . . Worker 1 | . . . 1 . . . . . . . . . . . Hauler 8 | . . . 3 3 1 . . 1 . . . . . . Recycler 8 | . . . 1 1 2 . . 4 . . . . . . Operator 2 | . . . 1 . 1 . . . . . . . . . Watcher 2 | . . . 1 1 . . . . . . . . . . Swarmer 37 | . 3 . 5 3 8 . 2 . . . . 9 . 7 Cutter 2 | . . . . . . . . 2 . . . . . . Grunt 77 | . 2 . 16 10 22 . 5 15 . 3 1 . . 3 Brawler 4 | . . . . 1 . . . 1 . 1 1 . . . Duelist 4 | . . . 1 . . . 2 1 . . . . . . Sentry 22 | . . . 4 9 7 . . . 1 1 . . . . Specialist 1 | . . . . . . . 1 . . . . . . . Hunter 6 | . . . . . 1 . . 1 2 . . . . 2 Programmer 8 | . . . . . 5 . . 2 . . . 1 . . Heavy 1 | . . . . . . . 1 . . . . . . . Behemoth 1 | . . . . . . . . . . . . 1 . . Striker 2 | . . . . . . . . . . . 2 . . . Subdweller 3 | . . 3 . . . . . . . . . . . . Best Kill Streak 7 | . 5 1 6 3 7 . 3 6 2 2 1 3 . 4 Combat Bots Only 7 | . 5 1 4 3 7 . 3 5 2 2 1 3 . 4 Max Kills in Single Turn 2 | . 1 1 1 1 1 . 1 1 1 1 1 2 . 2 Gunslinging . | . . . . . . . . . . . . . . . Exploded . | . . . . . . . . . . . . . . . Melee 2 | . . . 1 1 1 . 1 1 1 1 1 2 . 2 Uniques/NPCs Destroyed . | . . . . . . . . . . . . . . . Combat | -11 -10 -10 -8 -8 -7 -6 -6 -5 -5 -5 -5 -4 -4 -4 -------- Run | Yrd Mat Sub Mat Sto Fac Fac DSF Fac Upp Upp War Pro Fac Gar Hostile Shots Fired 1437 | . 14 28 171 75 398 . 167 114 56 23 17 91 . 283 Missed 436 | . 2 8 54 19 117 . 49 38 23 13 5 24 . 84 Hits 1001 | . 12 20 117 56 281 . 118 76 33 10 12 67 . 199 Melee 22 | . . . 6 . . . 4 6 . 1 5 . . . Projectile 979 | . 12 20 111 56 281 . 114 70 33 9 7 67 . 199 AOE 1 | . . . . . . . . 1 . . . . . . Critical Strikes 32 | . 1 . 3 2 6 . 6 4 2 . 1 3 . 4 Damage Taken 15070 | . 156 421 1467 736 2639 . 2716 1169 420 125 383 1176 . 3662 Core 2214 | . 53 54 232 94 248 . 217 30 50 8 11 52 . 1165 Absorbed by Shields 1535 | . . . . . 458 . . 416 158 109 227 167 . . Redirected to Shielding 255 | . . 6 49 41 126 . . . 11 2 . 3 . 17 Ignored by Resistances 56 | . . . 56 . . . . . . . . . . . Regen/Repaired (Parts) 17 | . . . . . . . . . . . 17 . . . Core Remaining (%) 69 | 100 . 57 . 40 64 . 74 . . . . 84 . . Volleys Fired 70 | . 10 32 17 . . . . . . . . . . 11 Largest 2 | . 2 2 2 . . . . . . . . . . 1 Hottest 100 | . 80 80 100 . . . . . . . . . . 30 Shots Fired 110 | . 20 45 34 . . . . . . . . . . 11 Gun 108 | . 20 45 34 . . . . . . . . . . 9 Cannon . | . . . . . . . . . . . . . . . Launcher . | . . . . . . . . . . . . . . . Special 2 | . . . . . . . . . . . . . . 2 Kinetic 17 | . . . 8 . . . . . . . . . . 9 Thermal 91 | . 20 45 26 . . . . . . . . . . . Explosive 2 | . . . . . . . . . . . . . . 2 Electromagnetic . | . . . . . . . . . . . . . . . Robot Hit Streak 20 | . 11 20 9 . . . . . . . . . . 5 Robot Miss Streak 3 | . 1 1 3 . . . . . . . . . . 2 Penetration Max . | . . . . . . . . . . . . . . . Secondary Targets 2 | . 1 . 1 . . . . . . . . . . . Max Gunslinging Chain 1 | . 1 . 1 . . . . . . . . . . . Shots Hit Robots 604 | . 14 28 85 48 136 . 76 88 15 23 12 35 . 44 Core Hits 243 | . 8 9 40 28 47 . 27 35 5 7 5 13 . 19 Critical Kills . | . . . . . . . . . . . . . . . Critical Parts Destroyed 2 | . . . . . . . . . . . . . . 2 Critical Strikes 80 | . . . 6 5 22 . 8 16 3 4 . 7 . 9 Destroy 2 | . . . . . . . . . . . . . . 2 Sever 78 | . . . 6 5 22 . 8 16 3 4 . 7 . 7 Melee Attacks 672 | . . . 103 77 149 . 88 103 18 24 15 48 . 47 Impact . | . . . . . . . . . . . . . . . Slashing 672 | . . . 103 77 149 . 88 103 18 24 15 48 . 47 Piercing . | . . . . . . . . . . . . . . . Sneak Attacks 22 | . . . 4 6 4 . 1 7 . . . . . . Combat Hostiles 1 | . . . . . 1 . . . . . . . . . Follow-up Attacks 90 | . . . 13 7 14 . 14 17 1 4 3 12 . 5 Damage Inflicted 23865 | . 155 294 2727 1969 6118 . 2998 4143 674 954 407 1497 . 1929 Guns 942 | . 155 294 413 . . . . . . . . . . 80 Cannons . | . . . . . . . . . . . . . . . Explosions 213 | . . . . . . . . . . . . . . 213 Melee 22589 | . . . 2314 1969 6118 . 2998 4143 674 954 407 1497 . 1515 Ramming 1 | . . . . . . . . . . . . . . 1 Kinetic 124 | . . . 44 . . . . . . . . . . 80 Thermal 818 | . 155 294 369 . . . . . . . . . . . Explosive 213 | . . . . . . . . . . . . . . 213 Electromagnetic . | . . . . . . . . . . . . . . . Impact . | . . . . . . . . . . . . . . . Slashing 22709 | . . . 2314 1969 6118 . 2998 4143 674 954 407 1497 . 1635 Piercing . | . . . . . . . . . . . . . . . Highest Corruption 6 | . . . . 2 3 . . 3 3 3 5 6 . . Average Corruption 3 | . . . . 2 2 . . 3 3 3 4 5 . . Corruption Purged . | . . . . . . . . . . . . . . . Corruption Blocked . | . . . . . . . . . . . . . . . Effects 103 | . . . . 10 26 . . 9 8 25 3 22 . . Message Errors 29 | . . . . 4 8 . . . 3 8 . 6 . . Matter Fused 28 | . . . . 3 7 . . 2 2 6 1 7 . . Heat Flow Errors 6 | . . . . 1 1 . . 1 . 2 . 1 . . Energy Discharges 14 | . . . . 2 1 . . 3 1 2 2 3 . . Parts Rejected 1 | . . . . . . . . . . . . 1 . . Parts Fused 1 | . . . . . 1 . . . . . . . . . Data Loss (minor) 15 | . . . . . 5 . . 1 1 5 . 3 . . Data Loss (major) 8 | . . . . . 2 . . 2 1 2 . 1 . . Alerts 1 | . . . . . 1 . . . . . . . . . Overload Shots . | . . . . . . . . . . . . . . . Overflow Damage 1066 | . . . 66 56 375 . 88 317 23 32 . 58 . 51 Projectiles . | . . . . . . . . . . . . . . . Explosions . | . . . . . . . . . . . . . . . Melee 1066 | . . . 66 56 375 . 88 317 23 32 . 58 . 51 Knockbacks . | . . . . . . . . . . . . . . . Impact . | . . . . . . . . . . . . . . . Kinetic . | . . . . . . . . . . . . . . . Secondary . | . . . . . . . . . . . . . . . Self-Inflicted Damage . | . . . . . . . . . . . . . . . Shots . | . . . . . . . . . . . . . . . Rammed 1 | . . . . . . . . . . . . . . 1 Targets Rammed 1 | . . . . . . . . . . . . . . 1 Kicked . | . . . . . . . . . . . . . . . Crushed . | . . . . . . . . . . . . . . . Highest Temperature 408 | . 102 . 316 203 221 . 408 95 . 127 64 270 . 326 Average Temperature 69 | . 38 . 132 27 53 . 201 41 . 64 30 142 . 157 Received Heat Transfer 3674 | . 102 45 540 270 772 . 612 410 . 16 32 44 . 831 Siege Activations . | . . . . . . . . . . . . . . . Martial Activations . | . . . . . . . . . . . . . . . Shielding Activations . | . . . . . . . . . . . . . . . Robots Disrupted . | . . . . . . . . . . . . . . . Combat Hostiles . | . . . . . . . . . . . . . . . Robots Corrupted . | . . . . . . . . . . . . . . . Combat Hostiles . | . . . . . . . . . . . . . . . Parts Fried . | . . . . . . . . . . . . . . . Impact Corruptions . | . . . . . . . . . . . . . . . Robots Melted . | . . . . . . . . . . . . . . . Combat Hostiles . | . . . . . . . . . . . . . . . Parts Melted 6 | . 1 1 . . . . . . . . 3 . . 1 Heat Transferred 1525 | . 350 675 500 . . . . . . . . . . . Parts Sabotaged 3 | . . . . . . . . . . . 3 . . . Parts Stolen . | . . . . . . . . . . . . . . . Parts Stripped . | . . . . . . . . . . . . . . . Power Chain Reactions . | . . . . . . . . . . . . . . . Alert | -11 -10 -10 -8 -8 -7 -6 -6 -5 -5 -5 -5 -4 -4 -4 ------- Run | Yrd Mat Sub Mat Sto Fac Fac DSF Fac Upp Upp War Pro Fac Gar Maximum Alert Level 3 | . . . 1 1 3 1 2 2 . . . . . 1 Low Security (%) 55 | 100 100 . 88 91 32 . . 29 . . . . 100 89 Level 1 27 | . . . 11 8 36 100 61 42 . . . . . 10 Level 2 10 | . . . . . 12 . 38 27 . . . . . . Level 3 6 | . . . . . 17 . . . . . . . . . Level 4 . | . . . . . . . . . . . . . . . Level 5 . | . . . . . . . . . . . . . . . High Security . | . . . . . . . . . . . . . . . Max Security . | . . . . . . . . . . . . . . . Sterilizations 1 | . . . . . . . 1 . . . . . . . Peak Influence 816 | . 90 . 268 304 816 394 513 672 . . . . 132 231 Initial 394 | . . . . 107 135 394 233 268 . . . . 132 81 Average 246 | . 39 . 96 142 369 367 341 300 . . . . 124 139 Influence Increases 5630 | . 125 . 762 913 1427 . 390 870 70 200 110 390 4 369 Destroy 0b10 Robot/C 3300 | . 100 . 520 460 860 . 220 440 60 100 80 220 . 240 Destroy 0b10 Robot/NC 125 | . . . 35 25 20 . 20 25 . . . . . . Destroy Leader 680 | . 20 . 128 128 212 . 30 72 10 10 . 50 . 20 Successful Hack 151 | . 5 . 4 74 50 . . 14 . . . . 4 . Select Force Hacks 120 | . . . . 60 60 . . . . . . . . . Disable Machine 75 | . . . . 60 . . . . . . . . . 15 Anti-Garrison Action 200 | . . . . . . . . 150 . . . . . 50 Destroy Structure 19 | . . . . 1 . . . 4 . . . . . 14 Partial Spotted 15 | . . . . . . . . 15 . . . . . . Lose Combat Pursuer 945 | . . . 75 105 225 . 120 150 . 90 30 120 . 30 Influence Decreases 5470 | . 100 25 506 870 919 473 211 747 580 230 194 192 98 325 Entered New Map 1567 | . . 13 . 149 164 413 101 245 236 25 96 12 78 35 Time Decay 3131 | . 90 12 456 571 695 60 . 452 334 205 86 150 20 . Lost Part 622 | . 10 . 50 . 60 . 110 50 10 . 12 30 . 290 Purge Threat 150 | . . . . 150 . . . . . . . . . . Squads Dispatched 32 | . 2 . 4 2 15 1 1 7 . . . . . . Investigation 12 | . 1 . 3 2 4 1 . 1 . . . . . . Extermination 6 | . . . . . 5 . . 1 . . . . . . Reinforcement 10 | . 1 . 1 . 4 . 1 3 . . . . . . Assault 3 | . . . . . 1 . . 2 . . . . . . Garrison 1 | . . . . . 1 . . . . . . . . . Intercept . | . . . . . . . . . . . . . . . Searches Triggered . | . . . . . . . . . . . . . . . Construction Impeded 1 | . . . . . . . . 1 . . . . . . Haulers Reinforced . | . . . . . . . . . . . . . . . Active Scanning Responses . | . . . . . . . . . . . . . . . Cargo Convoy Interrupts . | . . . . . . . . . . . . . . . Stealth | -11 -10 -10 -8 -8 -7 -6 -6 -5 -5 -5 -5 -4 -4 -4 --------- Run | Yrd Mat Sub Mat Sto Fac Fac DSF Fac Upp Upp War Pro Fac Gar Distress Signals 12 | . 1 . 4 4 2 . . . . . 1 . . . Communications Jammed . | . . . . . . . . . . . . . . . Distress Signals . | . . . . . . . . . . . . . . . Times Spotted 276 | . 7 3 39 41 65 . 21 37 3 11 16 18 . 15 Peak Tracking Total 9 | . 6 2 6 6 7 . 5 7 2 4 9 5 . 8 Tactical Retreats 44 | . . . 4 7 12 . 8 4 . 2 1 5 . 1 Traps | -11 -10 -10 -8 -8 -7 -6 -6 -5 -5 -5 -5 -4 -4 -4 ------- Run | Yrd Mat Sub Mat Sto Fac Fac DSF Fac Upp Upp War Pro Fac Gar Traps Triggered 11 | . . . 2 2 4 . 1 2 . . . . . . Indirectly . | . . . . . . . . . . . . . . . Trap Hack Attempts . | . . . . . . . . . . . . . . . Triggered . | . . . . . . . . . . . . . . . Disarmed . | . . . . . . . . . . . . . . . Reprogrammed . | . . . . . . . . . . . . . . . Reused . | . . . . . . . . . . . . . . . Traps Extracted . | . . . . . . . . . . . . . . . Installed . | . . . . . . . . . . . . . . . Triggered . | . . . . . . . . . . . . . . . Machines | -11 -10 -10 -8 -8 -7 -6 -6 -5 -5 -5 -5 -4 -4 -4 ---------- Run | Yrd Mat Sub Mat Sto Fac Fac DSF Fac Upp Upp War Pro Fac Gar Machines Disabled 7 | . . . . 4 . . . 1 . . . . . 2 Max in Single Turn 1 | . . . . 1 . . . 1 . . . . . 1 Garrison Access 3 | . . . . 1 1 . . 1 . . . . . . Garrison Relay 1 | . . . . . . . . . . . . . . 1 Machines Repaired . | . . . . . . . . . . . . . . . Machines Dismantled . | . . . . . . . . . . . . . . . Machines Sabotaged . | . . . . . . . . . . . . . . . Overloaded Fab Kills . | . . . . . . . . . . . . . . . Hacking | -11 -10 -10 -8 -8 -7 -6 -6 -5 -5 -5 -5 -4 -4 -4 --------- Run | Yrd Mat Sub Mat Sto Fac Fac DSF Fac Upp Upp War Pro Fac Gar Machines Accessed 51 | . 1 . 6 13 14 2 . 3 3 2 4 1 1 1 Terminals 29 | . 1 . 4 10 6 2 . 2 1 1 . 1 . 1 Fabricators 2 | . . . . . 2 . . . . . . . . . Repair Stations . | . . . . . . . . . . . . . . . Recycling Units 4 | . . . . 2 2 . . . . . . . . . Scanalyzers 4 | . . . 2 . 2 . . . . . . . . . Garrison Access 5 | . . . . 1 2 . . 1 . . . . 1 . Total Hacks 135 | . 5 . 29 27 38 4 . 6 3 5 12 2 2 2 Successful 79 | . 4 . 17 16 17 1 . 1 3 5 12 2 1 . Failed 55 | . 1 . 11 11 21 3 . 5 . . . . 1 2 Catastrophic 8 | . 1 . . 1 3 . . 2 . . . . . 1 Database Lockouts 1 | . . . 1 . . . . . . . . . . . Manual 63 | . 5 . 15 24 15 . . 4 . . . . . . Terminals 79 | . 5 . 15 21 24 4 . 4 1 1 . 2 . 2 Fabricators 5 | . . . . . 5 . . . . . . . . . Repair Stations . | . . . . . . . . . . . . . . . Recycling Units 8 | . . . . 5 3 . . . . . . . . . Scanalyzers 18 | . . . 14 . 4 . . . . . . . . . Garrison Access 7 | . . . . 1 2 . . 2 . . . . 2 . Terminal Hacks 34 | . . . 1 5 5 1 . . 3 5 12 2 . . Record 14 | . . . . . . . . . 1 5 6 2 . . Prototype ID Bank 5 | . . . . . . . . . . . 5 . . . Open Door 6 | . . . . 3 . . . . 2 . 1 . . . Open DSF 2 | . . . . . 1 1 . . . . . . . . Emergency Access Points 1 | . . . . . 1 . . . . . . . . . Terminal Index 2 | . . . 1 1 . . . . . . . . . . Unreport Threat 1 | . . . . 1 . . . . . . . . . . Dispatch Records 1 | . . . . . 1 . . . . . . . . . Surveillance Status 1 | . . . . . 1 . . . . . . . . . Recall Investigation 1 | . . . . . 1 . . . . . . . . . Fabricator Hacks 3 | . . . . . 3 . . . . . . . . . Network Status 1 | . . . . . 1 . . . . . . . . . Load Schematic 1 | . . . . . 1 . . . . . . . . . Build 1 | . . . . . 1 . . . . . . . . . Repair Station Hacks . | . . . . . . . . . . . . . . . Recycling Unit Hacks . | . . . . . . . . . . . . . . . Scanalyzer 15 | . . . 12 . 3 . . . . . . . . . Insert Component 5 | . . . 5 . . . . . . . . . . . Analyze 6 | . . . 6 . . . . . . . . . . . Retrieve Study 4 | . . . 1 . 3 . . . . . . . . . Garrison Access Hacks 3 | . . . . 1 1 . . . . . . . 1 . Unlock Access 1 | . . . . . . . . . . . . . 1 . Seal Access 2 | . . . . 1 1 . . . . . . . . . Unauthorized Hacks 24 | . 4 . 4 10 5 . . 1 . . . . . . Terminals 19 | . 4 . 4 7 3 . . 1 . . . . . . Track 2 | . 1 . . 1 . . . . . . . . . . Assimilate 1 | . 1 . . . . . . . . . . . . . Botnet 14 | . 1 . 4 5 3 . . 1 . . . . . . Operators 2 | . 1 . . 1 . . . . . . . . . . Fabricators . | . . . . . . . . . . . . . . . Repair Stations . | . . . . . . . . . . . . . . . Recycling Units 5 | . . . . 3 2 . . . . . . . . . Monitor 1 | . . . . 1 . . . . . . . . . . Tunnel 4 | . . . . 2 2 . . . . . . . . . Scanalyzers . | . . . . . . . . . . . . . . . Garrison Access . | . . . . . . . . . . . . . . . Data Cores Recovered 1 | . . . . . 1 . . . . . . . . . Used 1 | . . . . . 1 . . . . . . . . . Hacking Detections 33 | . 1 . 5 10 11 1 . 2 1 . . . 1 1 Full Trace Events 5 | . 1 . 1 . 2 1 . . . . . . . . Feedback Events . | . . . . . . . . . . . . . . . Feedback Blocked . | . . . . . . . . . . . . . . . Robot Schematics Acquired . | . . . . . . . . . . . . . . . Robots Built . | . . . . . . . . . . . . . . . Authchips . | . . . . . . . . . . . . . . . Time . | . . . . . . . . . . . . . . . Total Robot Build Rating . | . . . . . . . . . . . . . . . Part Schematics Acquired 5 | . . . 5 . . . . . . . . . . . Parts Built 2 | . . . . . 2 . . . . . . . . . Authchips . | . . . . . . . . . . . . . . . Time 42 | . . . . . 42 . . . . . . . . . Total Part Build Rating 8 | . . . . . 8 . . . . . . . . . Part Studies Acquired 4 | . . . 1 . 3 . . . . . . . . . Parts Repaired . | . . . . . . . . . . . . . . . Time . | . . . . . . . . . . . . . . . Parts Recycled . | . . . . . . . . . . . . . . . Recycled Matter . | . . . . . . . . . . . . . . . Retrieved Matter . | . . . . . . . . . . . . . . . Retrieved Components . | . . . . . . . . . . . . . . . Parts Scanalyzed 5 | . . . 5 . . . . . . . . . . . Part Schematics Acquired 5 | . . . 5 . . . . . . . . . . . Parts Damaged . | . . . . . . . . . . . . . . . Bothacking | -11 -10 -10 -8 -8 -7 -6 -6 -5 -5 -5 -5 -4 -4 -4 ------------ Run | Yrd Mat Sub Mat Sto Fac Fac DSF Fac Upp Upp War Pro Fac Gar Used RIF Installer . | . . . . . . . . . . . . . . . Robots Hacked . | . . . . . . . . . . . . . . . Non-combat . | . . . . . . . . . . . . . . . Combat . | . . . . . . . . . . . . . . . Robot Hacks Applied . | . . . . . . . . . . . . . . . Relay Couplers Released 6 | . . . . . . . . 3 . . . . . 3 Machine Destruction 6 | . . . . . . . . 3 . . . . . 3 Fabnet Peak Effective % . | . . . . . . . . . . . . . . . Robots Rewired . | . . . . . . . . . . . . . . . Allies Hacked . | . . . . . . . . . . . . . . . Hacks Repelled . | . . . . . . . . . . . . . . . Allies | -11 -10 -10 -8 -8 -7 -6 -6 -5 -5 -5 -5 -4 -4 -4 -------- Run | Yrd Mat Sub Mat Sto Fac Fac DSF Fac Upp Upp War Pro Fac Gar Total Allies . | . . . . . . . . . . . . . . . Largest Group . | . . . . . . . . . . . . . . . Highest-Rated Group . | . . . . . . . . . . . . . . . Highest-Rated Ally . | . . . . . . . . . . . . . . . Initial Warlord ECA Mod 9 | . . . . . . . . 9 9 9 9 8 8 8 Total Orders . | . . . . . . . . . . . . . . . Ally Attacks . | . . . . . . . . . . . . . . . Total Damage . | . . . . . . . . . . . . . . . Kills . | . . . . . . . . . . . . . . . Allies Corrupted . | . . . . . . . . . . . . . . . Allies Melted . | . . . . . . . . . . . . . . . Intel | -11 -10 -10 -8 -8 -7 -6 -6 -5 -5 -5 -5 -4 -4 -4 ------- Run | Yrd Mat Sub Mat Sto Fac Fac DSF Fac Upp Upp War Pro Fac Gar Active Infowar (turns) 2139 | . . . 1206 933 . . . . . . . . . . Machine Analysis 2139 | . . . 1206 933 . . . . . . . . . . Robot Analysis Total . | . . . . . . . . . . . . . . . Derelict Logs Recovered 6 | . . . . . . . . . 2 2 . 2 . . Drone Launches . | . . . . . . . . . . . . . . . Drone Recoveries . | . . . . . . . . . . . . . . . Exploration | -11 -10 -10 -8 -8 -7 -6 -6 -5 -5 -5 -5 -4 -4 -4 ------------- Run | Yrd Mat Sub Mat Sto Fac Fac DSF Fac Upp Upp War Pro Fac Gar Turns Passed 14305 | 35 242 1658 1327 1735 2881 122 580 1136 747 1431 1349 587 48 427 Spaces Moved 8519 | 32 165 909 704 903 1525 97 211 652 622 1133 1045 308 28 185 Core 28 | 1 . . . . . . . . . . . . . 27 Treads 3297 | . 78 909 257 903 317 . 136 220 . . 52 308 28 89 Legs 5076 | . . . 447 . 1208 97 75 432 622 1133 993 . . 69 Wheels 118 | 31 87 . . . . . . . . . . . . . Hover . | . . . . . . . . . . . . . . . Flight . | . . . . . . . . . . . . . . . Fastest Speed 50 | 50 80 160 105 160 110 117 107 105 105 108 118 165 166 50 Average Speed 136 | 79 117 160 130 160 143 120 160 134 105 116 122 165 166 143 Slowest Speed 550 | 80 160 160 240 160 260 121 330 250 108 118 410 166 166 550 Overloaded Moves . | . . . . . . . . . . . . . . . Propulsion Burnouts . | . . . . . . . . . . . . . . . Robots Hopped . | . . . . . . . . . . . . . . . Potential Cave-ins . | . . . . . . . . . . . . . . . Cave-ins Triggered . | . . . . . . . . . . . . . . . Exploration Rate (%) 47 | 3 32 28 48 96 49 3 89 15 81 97 90 61 1 24 Regions Visited 14 Branch Regions 6 Pre-discovered Areas 6 | . . . . 2 2 . . . 1 . . 1 . . Known Exits Taken 4 | . . . . . . 1 . . 1 . . 1 1 . Unknown Exits Taken 9 | 1 1 1 1 1 1 . . 1 . 1 1 . . . Scrap Searched 9 | . . . . . . . . . 4 5 . . . . Spaces Dug 3 | . . . . 1 . . . 2 . . . . . . Terrain Destroyed 35 | . . . . 1 . . . 2 . . . . . 32 Melee 3 | . . . . 1 . . . 2 . . . . . . Projectile . | . . . . . . . . . . . . . . . AOE 32 | . . . . . . . . . . . . . . 32 Terrain Rammed . | . . . . . . . . . . . . . . . Walls Destroyed . | . . . . . . . . . . . . . . . Machines Disabled . | . . . . . . . . . . . . . . . Actions | -11 -10 -10 -8 -8 -7 -6 -6 -5 -5 -5 -5 -4 -4 -4 --------- Run | Yrd Mat Sub Mat Sto Fac Fac DSF Fac Upp Upp War Pro Fac Gar Total 10322 | 38 192 1067 952 1090 1980 101 374 859 698 1225 1095 349 29 273 Wait 800 | . 4 120 79 87 243 . 59 84 50 55 6 1 . 12 Move 8505 | 31 164 908 703 902 1524 96 210 651 621 1132 1044 307 27 185 Hop . | . . . . . . . . . . . . . . . Pick Up 41 | 2 5 3 10 2 9 2 4 . 1 2 . . . 1 Fast Attach 82 | 5 2 1 13 3 7 1 8 12 1 1 7 2 2 17 Attach 24 | . 1 . 3 . 9 1 1 3 . 1 . 3 . 2 Detach 4 | . . . 1 . 1 . . 2 . . . . . . Swap 151 | . 3 2 22 29 34 1 11 17 4 9 16 1 . 2 Drop 92 | . 3 1 22 8 19 . 8 9 6 5 10 1 . . Fire 70 | . 10 32 17 . . . . . . . . . . 11 Melee 552 | . . . 82 59 134 . 73 81 15 20 12 34 . 42 Ram 1 | . . . . . . . . . . . . . . 1 Kick . | . . . . . . . . . . . . . . . Crush . | . . . . . . . . . . . . . . . Escape Stasis . | . . . . . . . . . . . . . . . Rewire . | . . . . . . . . . . . . . . . Trap . | . . . . . . . . . . . . . . . Miscellaneous . | . . . . . . . . . . . . . . . Route ------- -11/Scrapyard -10/Materials -10/Subcaves -8/Materials (discovered 3 exits: *Fac / *Sto x2) -8/Storage -7/Factory (discovered 2 exits: *Fac / [*Low]) -6/Factory -6/DSF -5/Factory -5/Upper Caves -5/Upper Caves (discovered 2 exits: *Fac / *War) -5/Warlord -4/Proximity Caves -4/Factory (discovered 2 exits: Res / Gar) -4/Garrison History --------- Turn | Location | Event 14 | -11/Scrapyard | Discovered new exit (range 15) 36 | -11/Scrapyard | Entered Materials 267 | -10/Materials | Discovered new exit (range 7) 278 | -10/Materials | Entered Subcaves 279 | -10/Subcaves | Approached by a straggling Scientist 316 | -10/Subcaves | Build established: Mutant 355 | -10/Subcaves | Discovered new exit (range 16) 572 | -10/Subcaves | Shifting Twisted Machinery released Sub. Monowheel 572 | -10/Subcaves | Shifting Twisted Machinery released Sub. Monowheel 819 | -10/Subcaves | Lost 3 parts (1p1n1w) 1936 | -10/Subcaves | Entered Materials 1936 | -8/Materials | Evolved 4 slots: Power x1, Utility x3 2656 | -8/Materials | Discovered new exit (range 8) 2790 | -8/Materials | Discovered new exit (range 16) 2824 | -8/Materials | Discovered new exit (range 16) 2998 | -8/Materials | Central database locked down 3263 | -8/Materials | Entered Storage 3753 | -8/Storage | Core integrity fell below 50% 4289 | -8/Storage | Discovered new exit (range 16) 4387 | -8/Storage | Found Prototype Processor 4387 | -8/Storage | Identified Exp. Targeting Computer 4998 | -8/Storage | Entered Factory 4998 | -7/Factory | Evolved 2 slots: Propulsion x1, Utility x1 5127 | -7/Factory | Identified exit to DSF 5233 | -7/Factory | Discovered new exit (range 15) 5322 | -7/Factory | Build established: Gladiator 6046 | -7/Factory | Destroyed 7 combat bots 6995 | -7/Factory | Garrison activated, responded to threat 7235 | -7/Factory | Fabricated Chainsword (x2) 7668 | -7/Factory | Discovered new exit (range 11) 7798 | -7/Factory | First assault squad dispatched 7879 | -7/Factory | Entered another Factory area 7879 | -6/Factory | Evolved 2 slots: Propulsion x1, Utility x1 7940 | -6/Factory | Build established: Scavenger-Gladiator 8001 | -6/Factory | Identified exit to DSF 8001 | -6/Factory | Entered DSF 8048 | -6/DSF | Additional patrols routed to DSF 8160 | -6/DSF | Lost 5 parts (1p4u) 8396 | -6/DSF | Discovered new exit (range 14) 8469 | -6/DSF | Sterilization system engaged 8489 | -6/DSF | Ambient heat levels rising (+10) 8504 | -6/DSF | Ambient heat levels rising (+10) 8519 | -6/DSF | Ambient heat levels rising (+10) 8534 | -6/DSF | Ambient heat levels rising (+10) 8537 | -6/DSF | Lost 3 parts (1n2u) 8549 | -6/DSF | Ambient heat levels rising (+10) 8564 | -6/DSF | Ambient heat levels rising (+10) 8579 | -6/DSF | Ambient heat levels rising (+10) 8581 | -6/DSF | Entered Factory 8581 | -5/Factory | Evolved 2 slots: Utility x2 9701 | -5/Factory | Discovered new exit (range 14) 9717 | -5/Factory | Entered Upper Caves 9723 | -5/Upper Caves | Met a Warlord Commander 9724 | -5/Upper Caves | Learned location of Warlord (-5) 9725 | -5/Upper Caves | Warlord Commander delivered Encrypted Comm Array 9725 | -5/Upper Caves | Found Encrypted Comm Array 9746 | -5/Upper Caves | Identified exit to Upper Caves 10046 | -5/Upper Caves | Encountered a Warlord checkpoint 10165 | -5/Upper Caves | Attracted the attention of an 0b10 checkpoint 10318 | -5/Upper Caves | Learned location of 1 exit from Proximity Caves 10464 | -5/Upper Caves | Entered another Upper Caves area 10569 | -5/Upper Caves | Discovered new exit (range 13) 10615 | -5/Upper Caves | Learned location of 1 exit from Proximity Caves 10689 | -5/Upper Caves | Learned 12 Factory zone layouts 10690 | -5/Upper Caves | Learned Research emergency access door positions 10690 | -5/Upper Caves | Learned Armory garrison access intel 10980 | -5/Upper Caves | Discovered new exit (range 15) 11180 | -5/Upper Caves | Attracted the attention of an 0b10 checkpoint 11867 | -5/Upper Caves | Build established: Gladiator 11895 | -5/Upper Caves | Entered Warlord 11930 | -5/Warlord | Discovered new exit (range 8) 11989 | -5/Warlord | System corruption cleaned by Quarantine Array 12176 | -5/Warlord | Found Prototype Special Weapon 12176 | -5/Warlord | Identified RU-N14's Throwing Claymores v3 12376 | -5/Warlord | Visited the Vortex Lab 12392 | -5/Warlord | Warlord's base attacked by MAIN.C 12637 | -5/Warlord | Met Warlord 12742 | -5/Warlord | Warlord forces counterattacked 12850 | -5/Warlord | Lost 13 allies 12942 | -5/Warlord | Found Prototype Device 12942 | -5/Warlord | Identified Minesniffer Drone Bay 12997 | -5/Warlord | Spotted Striker 13008 | -5/Warlord | Destroyed Striker 13067 | -5/Warlord | Warlord base infiltrated, sounded retreat 13093 | -5/Warlord | Build established: Scavenger-Gladiator 13101 | -5/Warlord | Spotted Striker 13122 | -5/Warlord | Destroyed Striker 13244 | -5/Warlord | Entered Proximity Caves 13245 | -4/Proximity Caves | Identified exit to Factory 13285 | -4/Proximity Caves | Spotted B-86 Titan 13481 | -4/Proximity Caves | Destroyed B-86 Titan 13831 | -4/Proximity Caves | Entered Factory 13831 | -4/Factory | Evolved 2 slots: Utility x2 13832 | -4/Factory | Identified exit to Research 13878 | -4/Factory | Identified exit to Garrison 13879 | -4/Factory | Entered Garrison 13937 | -4/Garrison | Triggered checkpoint 13961 | -4/Garrison | Garrison Relay disabled 13995 | -4/Garrison | Triggered checkpoint 14069 | -4/Garrison | Lost 8 parts (1p3n4u) 14151 | -4/Garrison | Spotted B-86 Titan 14217 | -4/Garrison | Core integrity fell below 50% 14248 | -4/Garrison | Core integrity fell below 20% 14272 | -4/Garrison | Lost 16 parts (3p4n7u2w) 14306 | -4/Garrison | Destroyed by B-86 Titan with Railgun Last Messages --------------- Slug penetrates Y-64 Sentinel. Y-64 Sentinel suffers critical hit (Destroy). Destroyed Wave Gun. Penetrated by Slug. Slug penetrates Wall. Slug penetrates Y-64 Sentinel. Y-64 Sentinel suffers critical hit (Destroy). Destroyed KE Penetrator. Acquired 2 matter. Slug penetrates Reinforced Barrier. Slug penetrates Wall. Coil Gun destroyed. RU-N14's Throwing Claymores v3 destroyed. Imp. Treads destroyed. Penetrated by Slug. Slug penetrates Wall. The unstable cave ceiling collapses. Acquired Adv. Weapon Cycler. Slug penetrates Wall. Acquired Adv. Weapon Cycler. Map ----- +----------------------------------------------------+ | ?????????# #??????????????????# #?? | | ?????????# #??????????????????# #?? | | ?????????# #??????????????????# ### ######?? | | ?????????# #??????????????????# #?# #??????? | | ?????????# #################### #?#####??????? | | ?????????# #????????????? | | ?????????# #????????????? | | ?????????# #????????????? | | ?????????####################### #????????????? | | ???????????????????????????????# #????????????? | | ???????????????????????????????# #????????????? | | ???????????????????????????????# #????????????? | | ???????????????????????????????# #????????????? | | ???????????????????????????????# #????????????? | | ????????????????????????#####??# #????????????? | | ????????????????????????# [%#### #????????????? | | ?????????????????????####% #"## #????????????? | | ?????????????????????# ^ %%[[BB #????????????? | | ?????????????????????# ^ %BB% #????????????? | | ?????????????????????# ##"#";;;= #????????????? | | ?????????????????????# ## # " #????????????? | | ????????????????????## ## ; " #????????????? | | ????????????????????#! # ; ##" ##???????????? | | ????????????????????#! # ####" "############? | | ????????????????????#! ; "% " %=*%== #? | | ????????????????????#! @####### ""%%#"*#"+###" | | ????????????????????#!!!!#?????# = | | ????????????????????######?????# | | ???????????????????????????????# | | ???????????????????????????????#### ## # "# | | ??????????????????????????????????## ### "" | | ??????????????????????????????????? #?? | | ??????????????????????????????????? ???? | | ???????????????????????????????????? ??????? | | ????????????????????????????????????????????? | | ????????????????????????????????????????????? ## | | ??????????????????????????????????????????????#? | | ????????????????????????????????????????????????? | | ????????????????????????????????????????????????? | | ????????????????????????????????????????????????? | | ????????????????????????????????????????????????? | | ????????????????????????????????????????????????? | | ????????????????????????????????????????????????? | | ????????????????????????????????????????????????? | | ????????????????????????????????????????????????? | | ????????????????????????????????????????????????? | | ????????????????????????????????????????????????? | | ????????????????????????????????????????????????? | | ????????????????????????????????????????????????? | | ????????????????????????????????????????????????? | +----------------------------------------------------+ Best States ------------- Heat Dissipation 100 Energy Generation 35 Energy Capacity 525 Matter Stores 300 Matter Capacity 300 Sight Range 16 Terrain Scan Density 10 Additional Mass Support 6 Armor Coverage 1125 Resistance: KI 10 Core Shielding 20 Power Shielding 66 Propulsion Shielding 66 Utility Shielding 33 Weapon Shielding 33 Point Defense Rating 80 Weapon Cycling 25 Melee Speed Boost 50 Phase Shifting 10 Evasion (%) 70 Targeting Accuracy 6 Melee Accuracy 16 Target Analysis 6 Core Analysis 6 Recoil Reduction 4 Authchip Count 1 Item Schematics ----------------- Chainsword | -8/Materials | Scanalyzed Adv. Visual Processing Unit | -8/Materials | Scanalyzed Imp. Ion Engine | -8/Materials | Scanalyzed Adv. Heat Sink | -8/Materials | Scanalyzed Aluminum Leg | -8/Materials | Scanalyzed Robot Schematics ------------------ None Fabricated ------------ Chainsword | x2 | -7/Factory Repaired ---------- Nothing Studied --------- Lgt. Nuclear Core | -8/Materials | Hacked Chainsword | -7/Factory | Hacked Med. Treads | -7/Factory | Hacked Carbon-fiber Leg | -7/Factory | Hacked Alien Tech Used ----------------- None Achievements -------------- Can't Touch This Deadly Force Hot Goods I Like You, Cogmind Melee Specialist Plot Armor Window Shopping Challenges ------------ None Game ------ Seed BeamSwarmJets Manual? 0 Play Time 01:58:32 Cumulative 53.5 hours Start 2025.11.18 @ 19:41:20 End 2025.11.18 @ 21:46:01 Sessions 1 Manual Loads 0 Difficulty Rogue Special Mode None Game No. 60 Rogue 60 Adventurer 0 Explorer 0 Win Type - Total 1 Types 1/0/0/0/0/0/0/0/0/0 Lore% 48 Gallery% 44 Achievement% 33 Wizard Run 0 Options --------- Layout 1 ASCII 0 Keyboard 0 Movement Numpad Keybinds 0 Fullscreen 1 Font 32/SmallcapsGlow Map View 50x35 Zoom Use 0% Tactical HUD 0 Map Filters NONE Filters NONE Steam 1 RUN: a470ff81-f36e-4713-8e3e-9abe624ec499